[Event "Bay Area Open 2019"]
[Site "Burlingame"]
[Date "2019.01.05"]
[Round "7"]
[White "Stukopin, Andrey"]
[Black "Bai, Jinshi"]
[Result "1/2-1/2"]
[ECO "C24"]
[WhiteElo "2565"]
[BlackElo "2572"]
[Annotator "RC"]
[PlyCount "64"]
[EventDate "2019.01.01"]
[EventType "swiss"]
[EventCountry "USA"]
[SourceTitle "playchess.com"]
[Source "ChessBase"]
[SourceQuality "1"]
[TimeControl "40/5400+30:1800+30"]

1. e4 {[%emt 0:00:00]} e5 {[%emt 0:01:14]} 2. Bc4 {[%emt 0:00:00]} Nf6 {[%emt 0:00:09]} 3. d3 {[%emt 0:00:00]} c6 {[%emt 0:00:07]} 4. Nf3 {[%emt 0:00:00]} d5 {[%emt 0:00:07]} 5. Bb3 {[%emt 0:00:04]} Bb4+ {[%emt 0:00:07]} 6. Bd2 {[%emt 0:00:42]} Bxd2+ {[%emt 0:00:08]} 7. Qxd2 {[%emt 0:00:08]} O-O {[%emt 0:00:25]} 8. Nxe5 {[%emt 0:01:35]} Qe7 {[%emt 0:00:16]} 9. f4 {[%emt 0:00:40]} dxe4 {[%emt 0:00:10]} 10. d4 {[%emt 0:01:06]} Be6 {[%emt 0:00:10]} 11. O-O {[%emt 0:03:34]} Bxb3 {[%emt 0:00:41]} 12. axb3 {[%emt 0:00:07]} c5 {[%emt 0:00:08]} 13. d5 {[%emt 0:08:24]} Rd8 {[%emt 0:00:30]} 14. c4 {[%emt 0:01:30]} Nc6 {[%emt 0:00:11]} 15. Nc3 {[%emt 0:12:01]} Nxe5 {[%emt 0:01:22]} 16. fxe5 {[%emt 0:00:05]} Qxe5 {[%emt 0:00:06]} 17. Qf4 {[%emt 0:00:16]} Qd4+ {[%emt 0:15:42]} 18. Kh1 {[%emt 0:00:07]} e3 {[%emt 0:00:06]} 19. Rad1 {[%emt 0:10:25]} Qxf4 {[%emt 0:07:48]} 20. Rxf4 {[%emt 0:00:03]} Rd6 {[%emt 0:00:06]} 21. Ne4 {[%emt 0:22:16]} Rb6 {[%emt 0:03:20]} 22. Nxf6+ {[%emt 0:00:26]} gxf6 {[%emt 0:00:39]} 23. Rd3 {[%emt 0:00:09]} Re8 {[%emt 0:20:08]} 24. Rf1 {[%emt 0:00:05]} a5 {[%emt 0:08:28]} 25. Re1 {[%emt 0:01:04]} e2 {[%emt 0:11:40]} 26. Kg1 {[%emt 0:00:59]} a4 {[%emt 0:02:35]} 27. Kf2 {[%emt 0:11:40]} axb3 {[%emt 0:00:24]} 28. Rxe2 {[%emt 0:00:04]} Rd8 {[%emt 0:00:12]} 29. Rg3+ {[%emt 0:17:20]} Kf8 {[%emt 0:01:11]} 30. Rh3 {[%emt 0:01:27]} Rb4 {[%emt 0:08:57]} 31. Rxh7 {[%emt 0:00:04]} Kg8 {[%emt 0:00:03]} 32. Rh3 {[%emt 0:01:21]} Rxc4 {[%emt 0:07:20]} 1/2-1/2

[Event "Bay Area Open 2019"]
[Site "Burlingame"]
[Date "2019.01.05"]
[Round "7"]
[White "Escalante Ramirez, Brian Sebasti"]
[Black "Ynojosa Aponte, Felix Jose"]
[Result "1/2-1/2"]
[ECO "B30"]
[WhiteElo "2446"]
[BlackElo "2368"]
[Annotator "RC"]
[PlyCount "118"]
[EventDate "2019.01.01"]
[EventType "swiss"]
[EventCountry "USA"]
[SourceTitle "playchess.com"]
[Source "ChessBase"]
[SourceQuality "1"]
[TimeControl "40/5400+30:1800+30"]

1. e4 {[%emt 0:00:00]} c5 {[%emt 0:02:39]} 2. Nf3 {[%emt 0:00:00]} Nc6 {[%emt 0:00:08]} 3. Bb5 {[%emt 0:00:00]} e6 {[%emt 0:00:03]} 4. Bxc6 {[%emt 0:00:00]} bxc6 {[%emt 0:00:02]} 5. d3 {[%emt 0:00:00]} Ne7 {[%emt 0:00:03]} 6. Qe2 {[%emt 0:00:15]} d5 {[%emt 0:01:33]} 7. O-O {[%emt 0:07:10]} Ng6 {[%emt 0:00:11]} 8. Nc3 {[%emt 0:02:22]} Bd6 {[%emt 0:06:38]} 9. Re1 {[%emt 0:08:23]} O-O {[%emt 0:00:41]} 10. b3 {[%emt 0:08:15]} d4 {[%emt 0:10:18]} 11. Na4 {[%emt 0:00:38]} e5 {[%emt 0:00:02]} 12. Nd2 {[%emt 0:08:43]} Nf4 {[%emt 0:01:20]} 13. Qf1 {[%emt 0:00:17]} Be6 {[%emt 0:01:59]} 14. Ba3 {[%emt 0:05:53]} Qg5 {[%emt 0:08:40]} 15. Nf3 {[%emt 0:04:01]} Qh5 {[%emt 0:02:03]} 16. Bc1 {[%emt 0:00:36]} g5 {[%emt 0:00:46]} 17. Kh1 {[%emt 0:11:57]} Bh3 {[%emt 0:09:02]} 18. Bxf4 {[%emt 0:00:31]} gxf4 {[%emt 0:00:12]} 19. gxh3 {[%emt 0:08:58]} Qxf3+ {[%emt 0:00:53]} 20. Qg2+ {[%emt 0:00:01]} Qxg2+ {[%emt 0:00:04]} 21. Kxg2 {[%emt 0:00:07]} f5 {[%emt 0:00:39]} 22. Kf3 {[%emt 0:14:29]} fxe4+ {[%emt 0:00:09]} 23. Rxe4 {[%emt 0:00:30]} Rf6 {[%emt 0:02:09]} 24. Rg1+ {[%emt 0:01:17]} Kf7 {[%emt 0:00:01]} 25. Rg4 {[%emt 0:01:12]} Rh6 {[%emt 0:00:04]} 26. Kg2 {[%emt 0:01:24]} Rf8 {[%emt 0:05:26]} 27. Nb2 {[%emt 0:01:48]} Ke6 {[%emt 0:02:49]} 28. Nc4 {[%emt 0:02:00]} Rf5 {[%emt 0:00:14]} 29. Nd2 {[%emt 0:02:36]} Kd5 {[%emt 0:03:09]} 30. Nf3 {[%emt 0:02:27]} c4 {[%emt 0:01:25]} 31. dxc4+ {[%emt 0:06:27]} Kc5 {[%emt 0:00:10]} 32. a3 {[%emt 0:01:32]} Kb6 {[%emt 0:01:55]} 33. h4 {[%emt 0:00:36]} Bxa3 {[%emt 0:02:38]} 34. Rxe5 {[%emt 0:00:31]} Rxe5 {[%emt 0:06:16]} 35. Nxe5 {[%emt 0:00:03]} Re6 {[%emt 0:00:02]} 36. c5+ {[%emt 0:01:51]} Kb5 {[%emt 0:02:46]} 37. Nd3 {[%emt 0:00:41]} Re2 {[%emt 0:00:12]} 38. Rxf4 {[%emt 0:00:07]} Rxc2 {[%emt 0:00:02]} 39. Rxd4 {[%emt 0:00:21]} a5 {[%emt 0:02:56]} 40. Rd7 {[%emt 0:01:18]} Rc3 {[%emt 0:04:58]} 41. f4 {[%emt 0:30:39]} Rxb3 {[%emt 0:30:31]} 42. f5 {[%emt 0:00:00]} a4 {[%emt 0:00:00]} 43. f6 {[%emt 0:00:00]} Rxd3 {[%emt 0:00:00]} 44. Rxd3 {[%emt 0:00:00]} Bxc5 {[%emt 0:00:00]} 45. f7 {[%emt 0:00:00]} a3 {[%emt 0:00:51]} 46. Rd8 {[%emt 0:00:00]} Kc4 {[%emt 0:00:00]} 47. f8=Q {[%emt 0:00:00]} Bxf8 {[%emt 0:00:00]} 48. Rxf8 {[%emt 0:00:00]} a2 {[%emt 0:00:00]} 49. Ra8 {[%emt 0:00:00]} Kb3 {[%emt 0:00:00]} 50. Kf3 {[%emt 0:00:00]} Kb2 {[%emt 0:00:00]} 51. Rb8+ {[%emt 0:02:04]} Kc2 {[%emt 0:00:00]} 52. Ra8 {[%emt 0:00:05]} Kb2 {[%emt 0:00:00]} 53. h5 {[%emt 0:01:37]} a1=Q {[%emt 0:00:07]} 54. Rxa1 {[%emt 0:00:04]} Kxa1 {[%emt 0:00:00]} 55. Ke4 {[%emt 0:00:17]} Kb2 {[%emt 0:00:00]} 56. Kd4 {[%emt 0:00:21]} Kc2 {[%emt 0:00:00]} 57. h6 {[%emt 0:00:38]} Kd2 {[%emt 0:00:00]} 58. Kc5 {[%emt 0:00:05]} Ke3 {[%emt 0:00:00]} 59. Kxc6 {[%emt 0:00:05]} Kf4 {[%emt 0:00:00]} 1/2-1/2

[Event "Bay Area Open 2019"]
[Site "Burlingame"]
[Date "2019.01.05"]
[Round "7"]
[White "Balakrishnan, Praveen"]
[Black "Ali Marandi, Cemil Can"]
[Result "1-0"]
[ECO "C07"]
[WhiteElo "2418"]
[BlackElo "2530"]
[Annotator "ChessBase"]
[PlyCount "69"]
[EventDate "2019.01.01"]
[EventType "swiss"]
[EventCountry "USA"]
[SourceTitle "playchess.com"]
[Source "ChessBase"]
[SourceQuality "1"]
[TimeControl "40/5400+30:1800+30"]

1. e4 {[%emt 0:02:35]} e6 {[%emt 0:00:00]} 2. d4 {[%emt 0:00:09]} d5 {[%emt 0:00:00]} 3. Nd2 {[%emt 0:00:05]} c5 {[%emt 0:00:00]} 4. exd5 {[%emt 0:00:07]} Qxd5 {[%emt 0:00:00]} 5. Ngf3 {[%emt 0:00:21]} cxd4 {[%emt 0:00:00]} 6. Bc4 {[%emt 0:00:14]} Qd7 {[%emt 0:00:05]} 7. O-O {[%emt 0:00:34]} Nc6 {[%emt 0:00:25]} 8. Nb3 {[%emt 0:00:24]} a6 {[%emt 0:00:16]} 9. Nbxd4 {[%emt 0:00:41]} Nxd4 {[%emt 0:00:03]} 10. Nxd4 {[%emt 0:00:12]} Qc7 {[%emt 0:00:05]} 11. Qe2 {[%emt 0:03:01]} Bd6 {[%emt 0:00:10]} 12. Nf3 {[%emt 0:17:24]} Ne7 {[%emt 0:01:32]} 13. Bd3 {[%emt 0:18:49]} Bd7 {[%emt 0:01:14]} 14. c4 {[%emt 0:04:03]} Ng6 {[%emt 0:01:48]} 15. g3 {[%emt 0:05:56]} O-O-O {[%emt 0:05:59]} 16. Bd2 {[%emt 0:14:58]} Rhe8 {[%emt 0:04:21]} 17. c5 {[%emt 0:06:31]} Bf8 {[%emt 0:00:17]} 18. Qe1 {[%emt 0:01:34]} Bc6 {[%emt 0:18:15]} 19. Ba5 {[%emt 0:02:51]} Qd7 {[%emt 0:03:54]} 20. Bxg6 {[%emt 0:10:11]} Bxf3 {[%emt 0:01:31]} 21. Be4 {[%emt 0:02:31]} Bxe4 {[%emt 0:00:15]} 22. Qxe4 {[%emt 0:00:05]} Qd5 {[%emt 0:01:43]} 23. Qf4 {[%emt 0:05:45]} e5 {[%emt 0:02:42]} 24. Qg4+ {[%emt 0:02:00]} Rd7 {[%emt 0:00:10]} 25. c6 {[%emt 0:00:31]} bxc6 {[%emt 0:00:11]} 26. Rad1 {[%emt 0:00:42]} Qe6 {[%emt 0:06:02]} 27. Qe2 {[%emt 0:00:06]} Bc5 {[%emt 0:01:38]} 28. Qxa6+ {[%emt 0:00:47]} Kb8 {[%emt 0:01:36]} 29. Rxd7 {[%emt 0:00:20]} Qxd7 {[%emt 0:00:02]} 30. Rc1 {[%emt 0:00:49]} Qd4 {[%emt 0:02:19]} 31. Be1 {[%emt 0:00:11]} Re6 {[%emt 0:03:39]} 32. Rc3 {[%emt 0:00:31]} Qe4 {[%emt 0:00:58]} 33. Rb3+ {[%emt 0:00:27]} Kc7 {[%emt 0:00:04]} 34. Qa5+ {[%emt 0:00:06]} Kd7 {[%emt 0:00:35]} 35. Rb7+ {[%emt 0:00:12]} 1-0